{"text_format":"1","workbook":"xlsx","n_sheets":8,"sheets":["Notas Questionários","Matriz Enquadramento","Classificação Investimentos","Declarações","Mod Quest Investimentos","Notas","Tabela Notas","Categoria de Produtos"],"not_rendered":{"charts":0,"images":1,"macros":0,"external_links":0,"defined_names":5,"comments":0,"pivot_tables":0},"unopened":[],"bounds":{"document_bytes":16777216,"sheet_cells":100000,"rows_first":2000,"rows_last":500,"rows_between":2000,"halvings":0,"cell_chars":16384,"cell_head_chars":4096},"cells_cut":0,"cells_raw":0,"read":"whole","date_system":"1900"}

{"sheet":"Notas Questionários","index":0,"n_rows":27,"n_cols":11,"rows_kept":27,"cut":false,"hidden":true,"merged":[[2,1,3,1],[2,2,2,10],[16,1,17,1],[16,2,16,10]]}
[]
[null,"Investimentos - Anexo II"]
[null,"Questão","Alternativa"]
[null,null,"a","b","c","d","e","f","g","h","i"]
[null,1,1,2,3,0,"-","-","-","-","-"]
[null,2,1,2,3,"-","-","-","-","-","-"]
[null,3,1,2,3,"-","-","-","-","-","-"]
[null,4,0,0,1,2,3,2,2,2,0]
[null,5,1,2,3,"-","-","-","-","-","-"]
[null,6,1,2,3,"-","-","-","-","-","-"]
[null,7,1,2,3,"-","-","-","-","-","-"]
[null,8,1,2,3,4,1,2,3,4,"-"]
[null,9,1,2,3,4,"-","-","-","-","-"]
[]
[]
[null,"Derivativos - Anexo I"]
[null,"Questão","Alternativa"]
[null,null,"a","b","c","d","e","f","g","h","i"]
[null,1,1,2,3,0,"-","-","-","-","-"]
[null,2,1,2,3,"-","-","-","-","-","-"]
[null,3,1,2,3,"-","-","-","-","-","-"]
[null,4,1,2,3,"-","-","-","-","-","-"]
[null,5,1,2,3,"-","-","-","-","-","-"]
[null,6,1,2,3,"-","-","-","-","-","-"]
[null,7,1,2,3,"-","-","-","-","-","-"]
[null,8,1,2,3,4,1,2,3,4,"-"]
[null,9,1,2,3,4,"-","-","-","-","-"]

{"sheet":"Matriz Enquadramento","index":1,"n_rows":13,"n_cols":5,"rows_kept":13,"cut":false,"hidden":true,"merged":[[2,1,3,1],[2,2,2,4]]}
[]
[]
[null,"Perfil do cliente","Perfil do Produto"]
[null,null,"Conservador","Moderado","Agressivo"]
[null,"Investidor Profissional","Enquadrado","Enquadrado","Enquadrado"]
[null,"Investidor Qualificado","Enquadrado","Enquadrado","Enquadrado"]
[null,"PJ Direito Público","Enquadrado","Enquadrado","Enquadrado"]
[null,"Cliente c/ Carteira Administrada","Enquadrado","Enquadrado","Enquadrado"]
[null,"Cliente c/ Perfil definido por Consultor","Enquadrado","Enquadrado","Enquadrado"]
[null,"Agressivo","Enquadrado","Enquadrado","Enquadrado"]
[null,"Moderado","Enquadrado","Enquadrado","Desenquadrado"]
[null,"Conservador","Enquadrado","Desenquadrado","Desenquadrado"]
[null,"Sem Perfil","Desenquadrado","Desenquadrado","Desenquadrado"]

{"sheet":"Classificação Investimentos","index":2,"n_rows":18,"n_cols":19,"rows_kept":18,"cut":false,"hidden":true,"merged":[[15,1,17,1],[3,12,3,13],[3,15,4,15],[3,1,4,1],[3,10,3,11],[3,2,4,2],[5,1,7,1],[15,15,17,15],[3,17,3,18],[3,16,4,16],[8,1,9,1],[10,1,11,1],[13,1,14,1],[5,15,7,15],[8,15,9,15],[10,15,11,15],[13,15,14,15]]}
[]
[]
[]
[null,"Produto","Taxa","Fator 1","Fator 2","Fator 3","Fator 4","Fator 5","Fator 6","Fator 7","Avaliação",null,"Perfil do produto",null,null,"Produtos","Taxa","Perfil do produto"]
[null,null,null,"Crédito","Liquidez","Principal","Mercado","Contrato","Payout","Fiscal","Prazo ≤ 3 anos","Prazo > 3 anos","Prazo ≤ 3 anos","Prazo > 3 anos",null,null,null,"Prazo ≤ 3 anos","Prazo > 3 anos"]
[null,"CDB","Pós",1,1,0,0,0,0,1,1,1.5,"Conservador","Moderado",null,"CDB","Pós","Conservador","Moderado"]
[null,null,"Pré",1,1,0,1,0,0,1,1,1.5,"Conservador","Moderado",null,null,"Pré","Conservador","Moderado"]
[null,null,"IPCA",1,1,0,1,0,0,1,1,1.5,"Conservador","Moderado",null,null,"IPCA","Conservador","Moderado"]
[null,"LCA","Pós",1,1,0,0,0,0,1,1,1.5,"Conservador","Moderado",null,"LCA","Pós","Conservador","Moderado"]
[null,null,"Pré",1,1,0,1,0,0,1,1,1.5,"Conservador","Moderado",null,null,"Pré","Conservador","Moderado"]
[null,"LCI","Pós",1,1,0,0,0,0,1,1,1.5,"Conservador","Moderado",null,"LCI","Pós","Conservador","Moderado"]
[null,null,"Pré",1,1,0,1,0,0,1,1,1.5,"Conservador","Moderado",null,null,"Pré","Conservador","Moderado"]
[null,"LF","Pós",1,2,0,0,0,0,1,2,2.5,"Moderado","Moderado",null,"LF","Pós","Moderado","Moderado"]
[null,"DPGE","Pós",0,2,0,0,0,0,1,2,2.5,"Moderado","Moderado",null,"DPGE","Pós","Moderado","Moderado"]
[null,null,"Pré",0,2,0,1,0,0,1,2,2.5,"Moderado","Moderado",null,null,"Pré","Moderado","Moderado"]
[null,"CDBV","Pós",3,3,3,0,0,0,1,3,3.5,"Moderado","Agressivo",null,"CDBV","Pós","Moderado","Agressivo"]
[null,null,"Pré",3,3,3,1,0,0,1,3,3.5,"Moderado","Agressivo",null,null,"Pré","Moderado","Agressivo"]
[null,null,"IPCA",3,3,3,1,0,0,1,3,3.5,"Moderado","Agressivo",null,null,"IPCA","Moderado","Agressivo"]

{"sheet":"Declarações","index":3,"n_rows":38,"n_cols":2,"rows_kept":38,"cut":false,"hidden":true,"merged":[]}
[]
[]
[null,"Anexo IV"]
[null,"Declaração da Condição de Investidor Profissional"]
[]
[null,"Ao assinar este termo, afirmo minha condição de investidor profissional e declaro possuir conhecimento sobre o mercado financeiro suficiente para que não me sejam aplicáveis um conjunto de proteções legais e regulamentares conferidas aos demais investidores."]
[]
[null,"Como investidor profissional, atesto ser capaz de entender e ponderar os riscos financeiros relacionados à aplicação de meus recursos em valores mobiliários que só podem ser adquiridos por investidores profissionais. "]
[]
[null,"Declaro, sob as penas da lei, que possuo investimentos financeiros em valor superior a R$ 10.000.000,00 (dez milhões de reais). "]
[]
[null,"Data e local,"]
[]
[null,"_____________________          "]
[null,"[Inserir nome]"]
[]
[null,"_____________________"]
[null,"[Assinatura]"]
[]
[]
[]
[]
[null,"Anexo V"]
[null,"Declaração da Condição de Investidor Qualificado"]
[]
[null,"Ao assinar este termo, afirmo minha condição de investidor qualificado e declaro possuir conhecimento sobre o mercado financeiro suficiente para que não me sejam aplicáveis um conjunto de proteções legais e regulamentares conferidas aos investidores que não sejam qualificados."]
[]
[null,"Como investidor qualificado, atesto ser capaz de entender e ponderar os riscos financeiros relacionados à aplicação de meus recursos em valores mobiliários que só podem ser adquiridos por investidores qualificados. "]
[]
[null,"Declaro, sob as penas da lei, que possuo investimentos financeiros em valor superior a R$ 1.000.000,00 (um milhão de reais). "]
[]
[null,"Data e local,"]
[]
[null,"_____________________          "]
[null,"[Inserir nome]"]
[]
[null,"_____________________"]
[null,"[Assinatura]"]

{"sheet":"Mod Quest Investimentos","index":4,"n_rows":160,"n_cols":133,"rows_kept":160,"cut":false,"hidden":false,"merged":[[6,20,6,25],[33,2,34,29],[60,2,61,29],[6,14,6,18],[134,4,135,29],[158,4,159,4],[158,5,159,9],[158,11,159,12],[158,13,159,19],[158,20,159,22],[140,2,146,29],[99,2,99,7],[85,2,86,30],[6,27,6,29],[13,4,19,29],[23,4,29,29],[6,2,6,12]]}
[]
[]
[]
[null,null,null,null,null,null,null,null,null,null,null,null,null,null,null,null,null,null,null,null,null,null,null,null,null,null,null,null,null,null,null,null,null,null,null,null,"Validações"]
[null,null,null,null,null,null,null,null,null,null,null,null,null,null,null,null,null,null,null,null,null,null,null,null,null,null,null,null,null,null,null,null,null,null,null,null,null,null,null,null,null,null,null,null,null,"Validação CPF",null,null,null,null,null,null,null,null,null,null,null,null,null,null,null,null,null,null,null,null,null,null,null,null,null,null,null,null,null,null,null,null,null,null,null,null,null,null,null,"Validação CNPJ"]
[null,null,"Nome/Razão Social:",null,null,null,null,null,null,null,null,null,null,null,"CPF / CNPJ:",null,null,null,null,null,"E-mail:",null,null,null,null,null,null,"Telefone:",null,null,null,null,null,null,null,null,"Nome/Razão Social:","CPF / CNPJ:","E-mail:","Telefone:",null,"PF ou PJ?",null,null,null,"Info Preench",1,2,3,4,5,6,7,8,9,10,11,null,10,9,8,7,6,5,4,3,2,"Total","DV1",null,11,10,9,8,7,6,5,4,3,2,"Total","DV2","Info Calc","Teste",null,0,1,2,3,4,5,6,7,8,9,10,11,12,13,14,null,5,4,3,2,9,8,7,6,5,4,3,2,"Tot1","DV1",null,6,5,4,3,2,9,8,7,6,5,4,3,2,"Tot2","DV2","CNPJvalid","Teste"]
[null,null,null,null,null,null,null,null,null,null,null,null,null,null,null,null,null,null,null,null,null,null,null,null,null,null,null,null,null,null,null,null,null,null,null,null,{"$f":"IF(C7=\"\",1,0)","v":1},{"$f":"IF(O7=\"\",1,0)","v":1},{"$f":"IF(OR(U7=\"\",ISERR(SEARCH(\"@\",U7,1))),1,0)","v":1},{"$f":"IF(AB7=\"\",1,0)","v":1},null,{"$f":"IF(ISERR(IF(CF7=\"OK\",\"PF\",IF(EC7=\"OK\",\"PJ\",\"erro\"))),\"erro\",IF(CF7=\"OK\",\"PF\",IF(EC7=\"OK\",\"PJ\",\"erro\")))","v":"erro"},{"$f":"IF(AR7<>0,\"erro\",0)","v":"erro"},{"$f":"SUM(AK7:AN7)","v":4},null,{"$f":"SUBSTITUTE(SUBSTITUTE(SUBSTITUTE(O7,\"/\",\"\"),\"-\",\"\"),\".\",\"\")","v":""},{"$f":"MID($AT$7,AU$6,1)","v":""},{"$f":"MID($AT$7,AV$6,1)","v":""},"","","","","","","","","",null,{"$f":"AU$7*BG$6","v":{"$error":"#VALUE!"}},{"$f":"AV$7*BH$6","v":{"$error":"#VALUE!"}},{"$f":"AW$7*BI$6","v":{"$error":"#VALUE!"}},{"$error":"#VALUE!"},{"$error":"#VALUE!"},{"$error":"#VALUE!"},{"$error":"#VALUE!"},{"$error":"#VALUE!"},{"$error":"#VALUE!"},{"$f":"SUM(BG7:BO7)","v":{"$error":"#VALUE!"}},{"$f":"IF(11-MOD(BP7,11)>9,0,11-MOD(BP7,11))","v":{"$error":"#VALUE!"}},null,{"$f":"AU$7*BS$6","v":{"$error":"#VALUE!"}},{"$f":"AV$7*BT$6","v":{"$error":"#VALUE!"}},{"$error":"#VALUE!"},{"$error":"#VALUE!"},{"$error":"#VALUE!"},{"$error":"#VALUE!"},{"$error":"#VALUE!"},{"$error":"#VALUE!"},{"$error":"#VALUE!"},{"$f":"BQ$7*CB$6","v":{"$error":"#VALUE!"}},{"$f":"SUM(BS7:CB7)","v":{"$error":"#VALUE!"}},{"$f":"IF(11-MOD(CC7,11)>9,0,11-MOD(CC7,11))","v":{"$error":"#VALUE!"}},{"$f":"CONCATENATE(AU7,AV7,AW7,AX7,AY7,AZ7,BA7,BB7,BC7,BQ7,CD7)","v":{"$error":"#VALUE!"}},{"$f":"IF(AT7=CE7,\"OK\",\"erro\")","v":{"$error":"#VALUE!"}},null,{"$f":"SUBSTITUTE(SUBSTITUTE(SUBSTITUTE(O7,\"/\",\"\"),\"-\",\"\"),\".\",\"\")","v":""},{"$f":"MID($CH$7,CI$6,1)","v":""},{"$f":"MID($CH$7,CJ$6,1)","v":""},"","","","","","","","","","","","",null,{"$f":"CI$7*CX$6","v":{"$error":"#VALUE!"}},{"$f":"CJ$7*CY$6","v":{"$error":"#VALUE!"}},{"$f":"CK$7*CZ$6","v":{"$error":"#VALUE!"}},{"$f":"CL$7*DA$6","v":{"$error":"#VALUE!"}},{"$f":"CM$7*DB$6","v":{"$error":"#VALUE!"}},{"$f":"CN$7*DC$6","v":{"$error":"#VALUE!"}},{"$error":"#VALUE!"},{"$error":"#VALUE!"},{"$error":"#VALUE!"},{"$error":"#VALUE!"},{"$error":"#VALUE!"},{"$error":"#VALUE!"},{"$f":"SUM(CX7:DI7)","v":{"$error":"#VALUE!"}},{"$f":"IF(MOD(DJ7,11)<2,0,11-MOD(DJ7,11))","v":{"$error":"#VALUE!"}},null,{"$f":"CI$7*DM$6","v":{"$error":"#VALUE!"}},{"$f":"CJ$7*DN$6","v":{"$error":"#VALUE!"}},{"$f":"CK$7*DO$6","v":{"$error":"#VALUE!"}},{"$error":"#VALUE!"},{"$error":"#VALUE!"},{"$error":"#VALUE!"},{"$error":"#VALUE!"},{"$error":"#VALUE!"},{"$error":"#VALUE!"},{"$error":"#VALUE!"},{"$error":"#VALUE!"},{"$error":"#VALUE!"},{"$f":"DK$7*DY$6","v":{"$error":"#VALUE!"}},{"$f":"SUM(DM7:DY7)","v":{"$error":"#VALUE!"}},{"$f":"IF(MOD(DZ7,11)<2,0,11-MOD(DZ7,11))","v":{"$error":"#VALUE!"}},{"$f":"CONCATENATE(CI7,CJ7,CK7,CL7,CM7,CN7,CO7,CP7,CQ7,CR7,CS7,CT7,DK7,EA7)","v":{"$error":"#VALUE!"}},{"$f":"IF(CH7=EB7,\"OK\",\"erro\")","v":{"$error":"#VALUE!"}}]
[null,null,{"$f":"IF(C7=\"\",\"Preencha o campo Nome/Razão Social\",\"\")","v":"Preencha o campo Nome/Razão Social"},null,null,null,null,null,null,null,null,null,null,null,{"$f":"IF(OR(ISERR(AP7),AP7=\"erro\"),\"CPF / CNPJ preenchido incorretamente!\",IF(O7=\"\",\"Preencha o campo CPF / CNPJ\",IF(CF7=\"OK\",\"\",IF(EC7=\"OK\",\"\",\"CPF / CNPJ preenchido incorretamente!\"))))","v":"CPF / CNPJ preenchido incorretamente!"},null,null,null,null,null,{"$f":"IF(OR(U7=\"\",ISERR(SEARCH(\"@\",U7,1))),\"Preencha o campo E-mail com um e-mail válido\",\"\")","v":"Preencha o campo E-mail com um e-mail válido"},null,null,null,null,null,null,{"$f":"IF(AB7=\"\",\"Preencha o campo Telefone\",\"\")","v":"Preencha o campo Telefone"}]
[]
[null,null,"Seção A - Declarações de Investidor Profissional e Qualificado"]
[]
[null,null,null,null,"Declaração da Condição de Investidor Profissional",null,null,null,null,null,null,null,null,null,null,null,null,null,null,null,null,null,null,null,null,null,null,null,null,null,null,null,null,null,null,null,{"$f":"IF(AND(C12=\"\",C22=\"\"),0,IF(AND(C12=\"x\",C22=\"\"),1,IF(AND(C12=\"\",C22=\"x\"),2,\"erro\")))","v":0},"Seção A - Declarações de Investidor Profissional e Qualificado"]
[]
[null,null,null,null,"Ao assinar este termo, afirmo minha condição de investidor profissional e declaro possuir conhecimento sobre o mercado financeiro suficiente para que não me sejam aplicáveis um conjunto de proteções legais e regulamentares conferidas aos demais investidores.\n\nComo investidor profissional, atesto ser capaz de entender e ponderar os riscos financeiros relacionados à aplicação de meus recursos em valores mobiliários que só podem ser adquiridos por investidores profissionais.\n\nDeclaro, sob as penas da lei, que possuo investimentos financeiros em valor superior a R$ 10.000.000,00 (dez milhões de reais). "]
[]
[]
[]
[]
[]
[]
[]
[null,null,null,null,"Declaração da Condição de Investidor Qualificado"]
[]
[null,null,null,null,"Ao assinar este termo, afirmo minha condição de investidor qualificado e declaro possuir conhecimento sobre o mercado financeiro suficiente para que não me sejam aplicáveis um conjunto de proteções legais e regulamentares conferidas aos investidores que não sejam qualificados.\n\nComo investidor qualificado, atesto ser capaz de entender e ponderar os riscos financeiros relacionados à aplicação de meus recursos em valores mobiliários que só podem ser adquiridos por investidores qualificados.\n\nDeclaro, sob as penas da lei, que possuo investimentos financeiros em valor superior a R$ 1.000.000,00 (um milhão de reais). "]
[]
[]
[]
[]
[]
[]
[null,null,null,null,{"$f":"IF(AND(C12=\"x\",C22=\"x\"),\"Preencha apenas uma das declarações!\",\"\")","v":""}]
[null,null,"Seção B - Questionário de Suitability"]
[]
[null,null,"1) Que opção melhor representa seu conhecimento sobre os produtos de investimento a partir da sua formação acadêmica combinada com sua experiência profissional? (Não aplicável para PJ)",null,null,null,null,null,null,null,null,null,null,null,null,null,null,null,null,null,null,null,null,null,null,null,null,null,null,null,null,null,null,null,null,null,"Questão 1",{"$f":"IF(AP7=\"PJ\",0,IF(AND(C37=\"x\",C39=\"\",C41=\"\",C43=\"\"),0,IF(AND(C37=\"\",C39=\"x\",C41=\"\",C43=\"\"),1,IF(AND(C37=\"\",C39=\"\",C41=\"x\",C43=\"\"),2,IF(AND(C37=\"\",C39=\"\",C41=\"\",C43=\"x\"),3,\"erro\")))))","v":"erro"},{"$f":"IF(AL34=\"erro\",1,0)","v":1}]
[]
[]
[null,null,null,null,"a) Não concluí o ensino superior e profissionalmente não aprimorei meus conhecimentos sobre produtos de investimento."]
[]
[null,null,null,null,"b) Concluí o ensino superior, mas profissionalmente não aprimorei meus conhecimentos sobre produtos de investimento."]
[]
[null,null,null,null,"c) Não concluí o ensino superior, mas profissionalmente desenvolvi conhecimento suficiente sobre produtos de investimento."]
[]
[null,null,null,null,"d) Concluí o ensino superior e profissionalmente desenvolvi conhecimento suficiente sobre produtos de investimento."]
[null,null,{"$f":"IF(AK160=\"Sem Perfil\",\"\",IF(AP7=\"PJ\",IF(AND(C37=\"\",C39=\"\",C41=\"\",C43=\"x\"),\"\",\"Alternativa não aplicável para Pessoa Jurídica!\"),IF(AL34=\"erro\",\"Selecione somente  uma alternativa!\",\"\")))","v":"Selecione somente  uma alternativa!"}]
[null,null,"2) Em qual prazo você estima resgatar seus investimentos? ",null,null,null,null,null,null,null,null,null,null,null,null,null,null,null,null,null,null,null,null,null,null,null,null,null,null,null,null,null,null,null,null,null,"Questão 2",{"$f":"IF(AND(C47=\"x\",C49=\"\",C51=\"\"),1,IF(AND(C47=\"\",C49=\"x\",C51=\"\"),2,IF(AND(C47=\"\",C49=\"\",C51=\"x\"),3,\"erro\")))","v":"erro"},{"$f":"IF(AL45=\"erro\",1,0)","v":1}]
[]
[null,null,null,null,"a) Curto prazo, até três meses, pois os recursos serão utilizados em breve."]
[]
[null,null,null,null,"b) Médio prazo, entre três e seis meses, pois os recursos serão utilizados como rendimento complementar."]
[]
[null,null,null,null,"c) Longo prazo, acima de seis meses, pois os recursos serão utilizados com o objetivo de aumentar o patrimônio."]
[null,null,{"$f":"IF(AK160=\"Sem Perfil\",\"\",IF(AL45=\"erro\",\"Selecione somente uma alternativa!\",\"\"))","v":"Selecione somente uma alternativa!"}]
[null,null,"3) Qual é a sua experiência com produtos de investimento tradicionais (CDB, LCI, LCA) e fundos de investimento (fundos de renda fixa, de ações, multimercado)?",null,null,null,null,null,null,null,null,null,null,null,null,null,null,null,null,null,null,null,null,null,null,null,null,null,null,null,null,null,null,null,null,null,"Questão 3",{"$f":"IF(AND(C55=\"x\",C57=\"\",C59=\"\"),1,IF(AND(C55=\"\",C57=\"x\",C59=\"\"),2,IF(AND(C55=\"\",C57=\"\",C59=\"x\"),3,\"erro\")))","v":"erro"},{"$f":"IF(AL53=\"erro\",1,0)","v":1}]
[]
[null,null,null,null,"a) Nenhuma ou pouca experiência, pois nunca negociei esses produtos ou negociei raríssimas vezes. "]
[]
[null,null,null,null,"b) Média experiência; tenho algum conhecimento, mas não negocio com frequência."]
[]
[null,null,null,null,"c) Alta experiência; tenho pleno conhecimento sobre os produtos e negocio com frequência."]
[null,null,{"$f":"IF(AK160=\"Sem Perfil\",\"\",IF(AL53=\"erro\",\"Selecione somente uma alternativa!\",\"\"))","v":"Selecione somente uma alternativa!"}]
[null,null,"4) Com quais investimentos você tem familiaridade? Leve em consideração, além da sua experiência com os produtos de investimento, sua formação acadêmica e experiência profissional.",null,null,null,null,null,null,null,null,null,null,null,null,null,null,null,null,null,null,null,null,null,null,null,null,null,null,null,null,null,null,null,null,null,"Questão 4",{"$f":"IF(AND(P68=\"x\",OR(C64=\"x\",C66=\"x\",C68=\"x\",J64=\"x\",J66=\"x\",J68=\"x\",P64=\"x\",P66=\"x\")),\"erro\",IF(AND(C64<>\"x\",C66<>\"x\",C68<>\"x\",J64<>\"x\",J66<>\"x\",J68<>\"x\",P64<>\"x\",P66<>\"x\",P68<>\"x\"),\"erro\",SUM(AK64,AK66,AK68,AM64,AM66,AM68,AO64,AO66,AO68)))","v":"erro"},{"$f":"IF(AL61=\"erro\",1,0)","v":1}]
[]
[]
[null,null,null,null,"a) Poupança",null,null,null,null,null,null,"d) Renda Variável (Ex.: Ações)",null,null,null,null,null,"g) Fundos de Ação",null,null,null,null,null,null,null,null,null,null,null,null,null,null,null,null,null,"a",{"$f":"0*IF(C64=\"x\",1,IF(C64=\"\",0,\"erro\"))","v":0},"d",{"$f":"2*IF(J64=\"x\",1,IF(J64=\"\",0,\"erro\"))","v":0},"g",{"$f":"2*IF(P64=\"x\",1,IF(P64=\"\",0,\"erro\"))","v":0}]
[]
[null,null,null,null,"b) Títulos Públicos",null,null,null,null,null,null,"e) Derivativos",null,null,null,null,null,"h) Clubes de Investimentos",null,null,null,null,null,null,null,null,null,null,null,null,null,null,null,null,null,"b",{"$f":"0*IF(C66=\"x\",1,IF(C66=\"\",0,\"erro\"))","v":0},"e",{"$f":"3*IF(J66=\"x\",1,IF(J66=\"\",0,\"erro\"))","v":0},"h",{"$f":"2*IF(P66=\"x\",1,IF(P66=\"\",0,\"erro\"))","v":0}]
[]
[null,null,null,null,"c) Renda Fixa (Ex.: CDB, LCI, LCA)",null,null,null,null,null,null,"f) Fundos Multimercados",null,null,null,null,null,"i) Não possuo experiência em investimentos",null,null,null,null,null,null,null,null,null,null,null,null,null,null,null,null,null,"c",{"$f":"1*IF(C68=\"x\",1,IF(C68=\"\",0,\"erro\"))","v":0},"f",{"$f":"2*IF(J68=\"x\",1,IF(J68=\"\",0,\"erro\"))","v":0},"i",{"$f":"0*IF(P68=\"x\",1,IF(P68=\"\",0,\"erro\"))","v":0}]
[null,null,{"$f":"IF(AK160=\"Sem Perfil\",\"\",IF(AND(P68=\"x\",OR(C64=\"x\",C66=\"x\",C68=\"x\",J64=\"x\",J66=\"x\",J68=\"x\",P64=\"x\",P66=\"x\")),\"A opção 'i' não pode ser acompanhada de outras opções de investimento!\",IF(AL61=\"erro\",\"Selecione uma ou mais alternativas!\",\"\")))","v":"Selecione uma ou mais alternativas!"}]
[null,null,"5) Qual é sua tolerância em relação ao risco de perda?",null,null,null,null,null,null,null,null,null,null,null,null,null,null,null,null,null,null,null,null,null,null,null,null,null,null,null,null,null,null,null,null,null,"Questão 5",{"$f":"IF(AND(C72=\"x\",C74=\"\",C76=\"\"),1,IF(AND(C72=\"\",C74=\"x\",C76=\"\"),2,IF(AND(C72=\"\",C74=\"\",C76=\"x\"),3,\"erro\")))","v":"erro"},{"$f":"IF(AL70=\"erro\",1,0)","v":1}]
[]
[null,null,null,null,"a) Não quero perder capital, mesmo que isso signifique que minha rentabilidade seja pequena."]
[]
[null,null,null,null,"b) Posso aceitar perdas ocasionais em busca de retornos maiores, desde que signifiquem pequenas parcelas do total investido."]
[]
[null,null,null,null,"c) Posso aceitar perdas ocasionais, em busca de retornos muito elevados."]
[null,null,{"$f":"IF(AK160=\"Sem Perfil\",\"\",IF(AL70=\"erro\",\"Selecione somente uma alternativa!\",\"\"))","v":"Selecione somente uma alternativa!"}]
[null,null,"6) Qual é o objetivo dos seus investimentos em relação ao seu patrimônio?",null,null,null,null,null,null,null,null,null,null,null,null,null,null,null,null,null,null,null,null,null,null,null,null,null,null,null,null,null,null,null,null,null,"Questão 6",{"$f":"IF(AND(C80=\"x\",C82=\"\",C84=\"\"),1,IF(AND(C80=\"\",C82=\"x\",C84=\"\"),2,IF(AND(C80=\"\",C82=\"\",C84=\"x\"),3,\"erro\")))","v":"erro"},{"$f":"IF(AL78=\"erro\",1,0)","v":1}]
[]
[null,null,null,null,"a) Proteção do patrimônio e priorização da segurança em investimentos; sem riscos."]
[]
[null,null,null,null,"b) Proteção contra riscos financeiros e consideração da segurança em investimentos, com pequenos riscos para obter mais rentabilidade."]
[]
[null,null,null,null,"c) Proteção contra riscos financeiros e consideração de um risco maior e oscilações no curto prazo em busca de maiores ganhos. "]
[null,null,{"$f":"IF(AK160=\"Sem Perfil\",\"\",IF(AL78=\"erro\",\"Selecione somente uma alternativa!\",\"\"))","v":"Selecione somente uma alternativa!"}]
[null,null,"7) Em uma situação de crise, supondo que você guardou o equivalente a 12 meses de sua Renda / Faturamento, qual seria sua reação ao verificar uma perda do equivalente a 1 mês de sua Renda / Faturamento? "]
[null,null,null,null,null,null,null,null,null,null,null,null,null,null,null,null,null,null,null,null,null,null,null,null,null,null,null,null,null,null,null,null,null,null,null,null,"Questão 7",{"$f":"IF(AND(C89=\"x\",C91=\"\",C93=\"\"),1,IF(AND(C89=\"\",C91=\"x\",C93=\"\"),2,IF(AND(C89=\"\",C91=\"\",C93=\"x\"),3,\"erro\")))","v":"erro"},{"$f":"IF(AL87=\"erro\",1,0)","v":1}]
[]
[null,null,null,null,"a) Resgataria a totalidade dos recursos."]
[]
[null,null,null,null,"b) Manteria os recursos por mais um tempo e se a perda aumentasse, resgataria a totalidade."]
[]
[null,null,null,null,"c) Buscaria mais informações para tomar uma decisão."]
[null,null,{"$f":"IF(AK160=\"Sem Perfil\",\"\",IF(AL87=\"erro\",\"Selecione somente uma alternativa!\",\"\"))","v":"Selecione somente uma alternativa!"}]
[null,null,"8) Em cumprimento à legislação aplicável, favor manter atualizadas as informações sobre a Renda / Faturamento e o patrimônio: ",null,null,null,null,null,null,null,null,null,null,null,null,null,null,null,null,null,null,null,null,null,null,null,null,null,null,null,null,null,null,null,null,null,"Questão 8",{"$f":"IF(OR(AND(C98=\"x\",AP7=\"PJ\"),AND(P98=\"x\",AP7=\"PF\")),\"erro\",IF(AND(AK98=1,AO98=0),IF(ISERR(AK102+AM102),\"erro\",AK102+AM102),IF(AND(AK98=0,AO98=1),IF(ISERR(AO102+AQ102),\"erro\",AO102+AQ102),\"erro\")))","v":"erro"},{"$f":"IF(AL95=\"erro\",1,0)","v":1}]
[]
[]
[null,null,"x",null,"Pessoa Física",null,{"$f":"IF($C$98=\"\",\"\",IF(AND($C$98=\"x\",$AP$7=\"PF\"),\"\",IF(AL95=\"erro\",\"Preencha opções de Renda e Patrimônio!\",\"Selecione o campo Pessoa Jurídica ou revise o campo CPF / CNPJ!\")))","v":"Preencha opções de Renda e Patrimônio!"},null,null,null,null,null,null,null,null,null,null,"Pessoa Jurídica",null,{"$f":"IF($P$98=\"\",\"\",IF(AND($P$98=\"x\",$AP$7=\"PJ\"),\"\",\"Selecione o campo Pessoa Física ou revise o campo CPF / CNPJ!\"))","v":""},null,null,null,null,null,null,null,null,null,null,null,null,null,null,null,null,{"$f":"IF(AND(C98=\"x\",P98=\"\"),1,IF(AND(C98=\"\",P98=\"x\"),0,\"erro\"))","v":1},null,null,null,{"$f":"IF(AND(C98=\"\",P98=\"x\"),1,IF(AND(C98=\"x\",P98=\"\"),0,\"erro\"))","v":0}]
[]
[null,null,"Renda Anual (Faturamento Anual): R$",null,null,null,null,null,null,"Valor do Patrimônio: R$",null,null,null,null,null,"Faturamento Anual: R$",null,null,null,null,null,null,"Valor do Patrimônio: R$"]
[]
[null,null,null,null,"a) Até 200 Mil",null,null,null,null,null,null,"e) Até 500 Mil",null,null,null,null,null,"a) Até 100 MM",null,null,null,null,null,null,"e) Até 50 MM",null,null,null,null,null,null,null,null,null,null,null,{"$f":"IF(AND(C102=\"x\",C104=\"\",C106=\"\",C108=\"\"),1,IF(AND(C102=\"\",C104=\"x\",C106=\"\",C108=\"\"),2,IF(AND(C102=\"\",C104=\"\",C106=\"x\",C108=\"\"),3,IF(AND(C102=\"\",C104=\"\",C106=\"\",C108=\"x\"),4,\"erro\"))))","v":"erro"},null,{"$f":"IF(AND(J102=\"x\",J104=\"\",J106=\"\",J108=\"\"),1,IF(AND(J102=\"\",J104=\"x\",J106=\"\",J108=\"\"),2,IF(AND(J102=\"\",J104=\"\",J106=\"x\",J108=\"\"),3,IF(AND(J102=\"\",J104=\"\",J106=\"\",J108=\"x\"),4,\"erro\"))))","v":"erro"},null,{"$f":"IF(AND(P102=\"x\",P104=\"\",P106=\"\",P108=\"\"),1,IF(AND(P102=\"\",P104=\"x\",P106=\"\",P108=\"\"),2,IF(AND(P102=\"\",P104=\"\",P106=\"x\",P108=\"\"),3,IF(AND(P102=\"\",P104=\"\",P106=\"\",P108=\"x\"),4,\"erro\"))))","v":"erro"},null,{"$f":"IF(AND(W102=\"x\",W104=\"\",W106=\"\",W108=\"\"),1,IF(AND(W102=\"\",W104=\"x\",W106=\"\",W108=\"\"),2,IF(AND(W102=\"\",W104=\"\",W106=\"x\",W108=\"\"),3,IF(AND(W102=\"\",W104=\"\",W106=\"\",W108=\"x\"),4,\"erro\"))))","v":"erro"}]
[]
[null,null,null,null,"b) De 200 Mil à 1 MM",null,null,null,null,null,null,"f) De 500 Mil à 2 MM",null,null,null,null,null,"b) De 100 MM à 300 MM",null,null,null,null,null,null,"f) De 50 MM à 100 MM"]
[]
[null,null,null,null,"c) De 1 MM à 5 MM",null,null,null,null,null,null,"g) De 2 MM à 100 MM",null,null,null,null,null,"c) De 300 MM à 500 MM",null,null,null,null,null,null,"g) De 100 MM à 200 MM"]
[]
[null,null,null,null,"d) Acima de 5 MM",null,null,null,null,null,null,"h) Acima de 10 MM",null,null,null,null,null,"d) Acima de 500 MM",null,null,null,null,null,null,"h) Acima de 200 MM"]
[]
[null,null,{"$f":"IF(AK160=\"Sem Perfil\",\"\",IF(AK98=\"erro\",\"Selecione uma das opções (PF ou PJ)!\",IF(C98=\"x\",IF(AND(C102=\"\",C104=\"\",C106=\"\",C108=\"\",J102=\"\",J104=\"\",J106=\"\",J108=\"\"),\"Preencha uma opção para Renda e uma opção para Patrimônio para Pessoa Física!\",IF(AK102=\"erro\",\"Selecione apenas uma alternativa para Renda!\",IF(AM102=\"erro\",\"Selecione apenas uma alternativa para Patrimônio!\",IF(OR(AO102<>\"erro\",AQ102<>\"erro\"),\"Selecione apenas os campos relacionados a Pessoa Física!\",\"\")))),IF(P98=\"x\",IF(AND(P102=\"\",P104=\"\",P106=\"\",P108=\"\",W102=\"\",W104=\"\",W106=\"\",W108=\"\"),\"Preencha uma opção para Faturamento e uma opção para Patrimônio para Pessoa Jurídica!\",IF(AO102=\"erro\",\"Selecione apenas uma alternativa para Faturamento!\",IF(AQ102=\"erro\",\"Selecione apenas uma alternativa para Patrimônio!\",IF(OR(AK102<>\"erro\",AM102<>\"erro\"),\"Selecione apenas os campos relacionados a Pessoa Jurídica!\",\"\"))))))))","v":"Preencha uma opção para Renda e uma opção para Patrimônio para Pessoa Física!"}]
[null,null,"9) Quanto, em termos percentuais, seus investimentos representam do seu patrimônio? ",null,null,null,null,null,null,null,null,null,null,null,null,null,null,null,null,null,null,null,null,null,null,null,null,null,null,null,null,null,null,null,null,null,"Questão 9",{"$f":"IF(AND(C113=\"x\",C115=\"\",J113=\"\",J115=\"\"),1,IF(AND(C113=\"\",C115=\"x\",J113=\"\",J115=\"\"),2,IF(AND(C113=\"\",C115=\"\",J113=\"x\",J115=\"\"),3,IF(AND(C113=\"\",C115=\"\",J113=\"\",J115=\"x\"),4,\"erro\"))))","v":"erro"},{"$f":"IF(AL111=\"erro\",1,0)","v":1}]
[]
[null,null,null,null,"a) Até 25%. ",null,null,null,null,null,null,"c) Entre 51% e 75%"]
[]
[null,null,null,null,"b) Entre 26% e 50%.",null,null,null,null,null,null,"d) Mais do que 76%"]
[null,null,{"$f":"IF(AK160=\"Sem Perfil\",\"\",IF(AL111=\"erro\",\"Selecione somente uma alternativa!\",\"\"))","v":"Selecione somente uma alternativa!"}]
[null,null,"10) Quantas operações de investimento você realizou nos ultimos 24 meses?",null,null,null,null,null,null,null,null,null,null,null,null,null,null,null,null,null,null,null,null,null,null,null,null,null,null,null,null,null,null,null,null,null,"Questão 10",{"$f":"IF(AND(C119=\"x\",C121=\"\",J119=\"\",J121=\"\"),1,IF(AND(C119=\"\",C121=\"x\",J119=\"\",J121=\"\"),2,IF(AND(C119=\"\",C121=\"\",J119=\"x\",J121=\"\"),3,IF(AND(C119=\"\",C121=\"\",J119=\"\",J121=\"x\"),4,\"erro\"))))","v":"erro"},{"$f":"IF(AL117=\"erro\",1,0)","v":1}]
[]
[null,null,null,null,"a) Até 3 operações",null,null,null,null,null,null,"c) Entre 7 e 9 operações"]
[]
[null,null,null,null,"b) Entre 4 e 6 operações",null,null,null,null,null,null,"d) Mais do que 9 operações"]
[null,null,{"$f":"IF(AK160=\"Sem Perfil\",\"\",IF(AL117=\"erro\",\"Selecione somente uma alternativa!\",\"\"))","v":"Selecione somente uma alternativa!"}]
[null,null,"11) Em quais produtos financeiros você investiu nos últimos 24 meses?",null,null,null,null,null,null,null,null,null,null,null,null,null,null,null,null,null,null,null,null,null,null,null,null,null,null,null,null,null,null,null,null,null,"Questão 11",{"$f":"IF(AND(C125=\"x\",C127=\"\",C129=\"\",C131=\"\"),0,IF(AND(C125=\"\",C127=\"x\",C129=\"\",C131=\"\"),1,IF(AND(C125=\"\",C127=\"\",C129=\"x\",C131=\"\"),2,IF(AND(C125=\"\",C127=\"\",C129=\"\",C131=\"x\"),3,\"erro\"))))","v":"erro"},{"$f":"IF(AL123=\"erro\",1,0)","v":1}]
[]
[null,null,null,null,"(a) Não investi no período."]
[]
[null,null,null,null,"(b) Somente Poupança, Títulos Públicos, Fundos de Renda Fixa ou Depósitos a Prazo (CDBs, LCIs, LCAs)"]
[]
[null,null,null,null,"(c) Fundos de Ação, fundos Multimercados ou Renda Variável (fundos de Ações, ações e similares), além de produtos da alternativa anterior."]
[]
[null,null,null,null,"(d) Derivativos, ou em operações ou fundos em moeda estrangeria, além de produtos da alternativa anterior"]
[null,null,{"$f":"IF(AK160=\"Sem Perfil\",\"\",IF(AL123=\"erro\",\"Selecione somente uma alternativa!\",\"\"))","v":"Selecione somente uma alternativa!"}]
[null,null,"Seção C - Declarações do cliente, Perfil e Assinatura",null,null,null,null,null,null,null,null,null,null,null,null,null,null,null,null,null,null,null,null,null,null,null,null,null,null,null,null,null,null,null,null,null,"Resultado Questionário",{"$f":"IF(OR(AL34=\"erro\",AL45=\"erro\",AL53=\"erro\",AL61=\"erro\",AL70=\"erro\",AL78=\"erro\",AL87=\"erro\",AL95=\"erro\",AL111=\"erro\",AL117=\"erro\",AL123=\"erro\"),\"erro\",SUM(AL34,AL45,AL53,AL61,AL70,AL78,AL87,AL95,AL111,AL117,AL123))","v":"erro"},null,"Perfil Questionário",{"$f":"IF(AL133=\"erro\",\"erro\",IF(AL133<=11,\"Conservador\",IF(AL133<=20,\"Moderado\",IF(AL133>=21,\"Agressivo\",\"erro\"))))","v":"erro"}]
[]
[null,null,null,null,"Declaro que as informações prestadas são verdadeiras; responsabilizo-me pela sua exatidão e comprometo-me a informar o Banco a respeito de quaisquer alterações nas informações prestadas.",null,null,null,null,null,null,null,null,null,null,null,null,null,null,null,null,null,null,null,null,null,null,null,null,null,null,null,null,null,null,null,{"$f":"IF(C135=\"x\",0,\"erro\")","v":"erro"},null,{"$f":"IF(AK135=\"erro\",1,0)","v":1}]
[]
[null,null,null,null,{"$f":"IF(AK160=\"Sem Perfil\",\"\",IF(C135=\"x\",\"\",\"Preencha a declaração acima com um 'x' para prosseguir!\"))","v":"Preencha a declaração acima com um 'x' para prosseguir!"}]
[]
[null,null,null,null,"Termo de Ciência de Risco de Ausência de perfil",null,null,null,null,null,null,null,null,null,null,null,null,null,null,null,null,null,null,null,null,null,null,null,null,{"$f":"IF(C139=\"\",\"\",IF(C139=\"x\",IF(AND(AL34=\"erro\",AL45=\"erro\",AL53=\"erro\",AL61=\"erro\",AL70=\"erro\",AL78=\"erro\",AL87=\"erro\",AL95=\"erro\",AL111=\"erro\"),\"\",\"Em caso de assinatura do Termo de Ciência de Risco não responda as questões de 1 a 9!\")))","v":""},null,null,null,null,null,null,{"$f":"IF(C139=\"x\",1,0)","v":0}]
[]
[null,null,"Declaro para todos os fins e efeitos de direito, sem limitação, para fins da legislação aplicável, que: (i) NÃO ACEITO RESPONDER O QUESTIONÁRIO DE SUITABILITY; (ii) que essa decisão foi tomada por livre e espontânea vontade; (iii) que estou ciente dos riscos inerentes aos produtos e serviços de alta complexidade oferecidos pelo Banco Fibra S.A.; (iv) que assumo inteira responsabilidade sobre essa decisão; (v)que tive prévio acesso a todas as informações que julgava necessárias à minha decisão independente de contratação de produtos, serviços e operações; (vi) e por fim, que estou ciente sobre a possibilidade de meus investimentos não estarem em conformidade com o meu perfil de investimento. Isento o Banco Fibra S.A. de qualquer questionamento por qualquer parte, incluindo órgãos reguladores e autorreguladores, com relação à contratação dos produtos, serviços ou operações, bem como por eventuais perdas decorrentes dos investimentos realizados."]
[]
[]
[]
[]
[]
[]
[]
[null,null,"Categoria de Produto de Investimento que desejo operar*: "]
[]
[null,null,null,null,"Renda Fixa Títulos Públicos",null,null,null,null,null,null,"Fundo de Invest. Ações",null,null,null,null,null,"Fundo de Investimento Multimercado",null,null,null,null,null,null,null,null,null,null,null,null,null,null,null,null,null,null,{"$f":"IF(C151=\"x\",1,0)","v":0},null,{"$f":"IF(J151=\"x\",1,0)","v":0},null,{"$f":"IF(P151=\"x\",1,0)","v":0},null,{"$f":"SUM(AK151,AK153,AK155,AM151,AM153,AM155,AO151,AO153,AO155)","v":0}]
[]
[null,null,null,null,"Renda Fixa com risco de crédito privado",null,null,null,null,null,null,"Fundo de Invest. Renda Fixa",null,null,null,null,null,"Fundo de Investimento Imobiliário",null,null,null,null,null,null,null,null,null,null,null,null,null,null,null,null,null,null,{"$f":"IF(C153=\"x\",1,0)","v":0},null,{"$f":"IF(J153=\"x\",1,0)","v":0},null,{"$f":"IF(P153=\"x\",1,0)","v":0}]
[]
[null,null,null,null,"Ações",null,null,null,null,null,null,"Cambial",null,null,null,null,null,"Fundo de Investimento em Participações",null,null,null,null,null,null,null,null,null,null,null,null,null,null,null,null,null,null,{"$f":"IF(C155=\"x\",1,0)","v":0},null,{"$f":"IF(J155=\"x\",1,0)","v":0},null,{"$f":"IF(P155=\"x\",1,0)","v":0}]
[]
[null,null,"*Pode ser preenchido mais de uma opção",null,null,null,null,null,null,{"$f":"IF(C139=\"x\",IF(AND(C151=\"\",C153=\"\",C155=\"\",J151=\"\",J153=\"\",J155=\"\",P151=\"\",P153=\"\",P155=\"\"),\"Selecione a(s) categoria(s) de Produto que deseja operar!\",\"\"),IF(AND(C151=\"\",C153=\"\",C155=\"\",J151=\"\",J153=\"\",J155=\"\",P151=\"\",P153=\"\",P155=\"\"),\"\",\"A seleção da(s) categoria(s) de Produto só é necessária em caso de assinatura de Termo de Ciência de Risco!\"))","v":""}]
[]
[null,null,null,null,"Perfil: ",{"$f":"IF(AK160=\"erro\",\"Preenchimento Incorreto!\",AK160)","v":"Preenchimento Incorreto!"},null,null,null,null,null,"Local e Data: ",null,null,null,null,null,null,null,null,"Assinatura: "]
[null,null,null,null,null,null,null,null,null,null,null,null,null,null,null,null,null,null,null,null,null,null,null,null,null,null,null,null,null,null,null,null,null,null,null,null,{"$f":"IF(AND(C139=\"x\",AQ151>0),\"Sem Perfil\",IF(AND(AO133<>\"erro\",C139=\"x\"),\"erro\",IF(OR(AQ7=\"erro\",AK12=\"erro\",AO133=\"erro\",AK135=\"erro\"),\"erro\",IF(AP7=\"PJ\",IF(AK12=0,AO133,IF(AK12=1,\"Profissional\",IF(AK12=2,\"Qualificado\",\"erro\"))),AO133))))","v":"erro"}]

{"sheet":"Notas","index":5,"n_rows":12,"n_cols":2,"rows_kept":12,"cut":false,"hidden":true,"merged":[]}
[]
["Questão","Resposta"]
[1,{"$f":"_xlfn.IFS('Mod Quest Investimentos'!C37=\"X\",1,'Mod Quest Investimentos'!C39=\"X\",2,'Mod Quest Investimentos'!C41=\"X\",3,'Mod Quest Investimentos'!C43=\"X\",0)","v":{"$error":"#N/A"}}]
[2,{"$f":"_xlfn.IFS('Mod Quest Investimentos'!C47=\"X\",1,'Mod Quest Investimentos'!C49=\"X\",2,'Mod Quest Investimentos'!C51=\"X\",3)","v":{"$error":"#N/A"}}]
[3,{"$f":"_xlfn.IFS('Mod Quest Investimentos'!C55=\"X\",1,'Mod Quest Investimentos'!C57=\"X\",2,'Mod Quest Investimentos'!C59=\"X\",3)","v":{"$error":"#N/A"}}]
[4,{"$f":"_xlfn.IFS('Mod Quest Investimentos'!C64=\"X\",0,'Mod Quest Investimentos'!C66=\"X\",0,'Mod Quest Investimentos'!C68=\"X\",1,'Mod Quest Investimentos'!J64=\"X\",2,'Mod Quest Investimentos'!J66=\"X\",3,'Mod Quest Investimentos'!J68=\"X\",2,'Mod Quest Investimentos'!P64=\"X\",2,'Mod Quest Investimentos'!P66=\"X\",2,'Mod Quest Investimentos'!P68=\"X\",0)","v":{"$error":"#N/A"}}]
[5,{"$f":"_xlfn.IFS('Mod Quest Investimentos'!C72=\"X\",1,'Mod Quest Investimentos'!C74=\"X\",2,'Mod Quest Investimentos'!C76=\"X\",3)","v":{"$error":"#N/A"}}]
[6,{"$f":"_xlfn.IFS('Mod Quest Investimentos'!C80=\"X\",1,'Mod Quest Investimentos'!C82=\"X\",2,'Mod Quest Investimentos'!C84=\"X\",3)","v":{"$error":"#N/A"}}]
[7,{"$f":"_xlfn.IFS('Mod Quest Investimentos'!C89=\"X\",1,'Mod Quest Investimentos'!C91=\"X\",2,'Mod Quest Investimentos'!C93=\"X\",3)","v":{"$error":"#N/A"}}]
["8 PF",{"$f":"_xlfn.IFS('Mod Quest Investimentos'!C102=\"X\",1,'Mod Quest Investimentos'!C104=\"X\",2,'Mod Quest Investimentos'!C106=\"X\",3,'Mod Quest Investimentos'!C108=\"x\",4)","v":{"$error":"#N/A"}}]
["8 PJ",{"$f":"_xlfn.IFS('Mod Quest Investimentos'!P102=\"x\",1,'Mod Quest Investimentos'!P104=\"x\",2,'Mod Quest Investimentos'!P106=\"x'\",3,'Mod Quest Investimentos'!P108=\"x\",4)","v":{"$error":"#N/A"}}]
[9,{"$f":"_xlfn.IFS('Mod Quest Investimentos'!C113=\"x\",1,'Mod Quest Investimentos'!C115=\"x\",2,'Mod Quest Investimentos'!J113=\"x'\",3,'Mod Quest Investimentos'!J115=\"x\",4)","v":{"$error":"#N/A"}}]

{"sheet":"Tabela Notas","index":6,"n_rows":13,"n_cols":10,"rows_kept":13,"cut":false,"hidden":true,"merged":[[2,0,3,0],[2,1,2,9]]}
[]
[]
["Questão","Alternativa"]
[null,"a","b","c","d","e","f","g","h","i"]
[1,1,2,3,0,"-","-","-","-","-"]
[2,1,2,3,"-","-","-","-","-","-"]
[3,1,2,3,"-","-","-","-","-","-"]
[4,0,0,1,2,3,2,2,2,0]
[5,1,2,3,"-","-","-","-","-","-"]
[6,1,2,3,"-","-","-","-","-","-"]
[7,1,2,3,"-","-","-","-","-","-"]
[8,1,2,3,4,1,2,3,4,"-"]
[9,1,2,3,4,"-","-","-","-","-"]

{"sheet":"Categoria de Produtos","index":7,"n_rows":14,"n_cols":12,"rows_kept":14,"cut":false,"hidden":true,"merged":[]}
[]
[]
[null,null,"Categoria de Produto de Investimento que desejo operar*: "]
[]
[null,null,null,null,"Renda Fixa títulos públicos",null,null,null,null,null,null,"Fundo de Investimento em Renda Fixa"]
[]
[null,null,null,null,"Renda Fixa com risco de crédito privado",null,null,null,null,null,null,"Fundo de Investimento Imobiliário"]
[]
[null,null,null,null,"Cambial",null,null,null,null,null,null,"Fundo de Investimento em Participações"]
[]
[null,null,null,null,"Fundo de Investimento Multimercado",null,null,null,null,null,null,"Ações"]
[]
[null,null,null,null,"Fundo de Investimento em Ações",null,null,null,null,null,null,"Derivativos"]
[null,null,"* Pode ser preenchido mais de uma opção."]